fUSD/lending_fUSD_20250405
["ID","MTS","AMOUNT","RATE_DAILY","PERIOD"]
[357193753,1743883848025,-500.0,0.0003041,2]
[357193754,1743883848035,-500.0,0.0003041,2]
[357193755,1743883848045,-151.0,0.0003041,7]
[357193756,1743883848055,-500.0,0.0003041,2]
[357193757,1743883848064,-151.0,0.0003041,7]
[357193758,1743883848074,-151.0,0.0003041,7]
[357193759,1743883848083,-500.0,0.0003041,2]
[357193760,1743883848093,-286.958317,0.0003041,7]
[357193761,1743883848104,-151.0,0.0003041,7]
[357193762,1743883848113,-151.0,0.0003041,7]
[357193763,1743883848122,-500.0,0.0003041,2]
[357193764,1743883848132,-500.0,0.0003041,2]
[357193765,1743883848141,-151.0,0.0003041,7]
[357193766,1743883848151,-151.0,0.0003041,7]
[357193767,1743883848161,-427.48981357,0.0003041,2]
[357193768,1743883848170,-151.0,0.0003041,7]
[357193769,1743883848180,-151.0,0.0003041,7]
[357193770,1743883848189,-151.0,0.0003041,7]
[357193771,1743883848200,-151.0,0.0003041,7]
[357193772,1743883848209,-151.0,0.0003041,7]
[357193773,1743883848219,-500.0,0.0003041,2]
[357193774,1743883848228,-151.0,0.0003041,7]
[357193775,1743883848238,-500.0,0.0003041,2]
[357193776,1743883848249,-500.0,0.0003041,2]
[357193777,1743883848259,-500.0,0.0003041,2]
[357193778,1743883848269,-500.0,0.0003041,2]
[357193779,1743883848279,-152.25312,0.0003041,7]
[357193780,1743883848288,-500.0,0.0003041,2]
[357193781,1743883848298,-500.0,0.0003041,2]
[357193782,1743883848308,-500.0,0.0003041,2]
[357193783,1743883848317,-500.0,0.0003041,2]
[357193784,1743883848327,-154.394773,0.0003041,7]
[357193785,1743883848337,-574.14,0.0003041,2]
[357193786,1743883848347,-500.0,0.0003041,2]
[357193787,1743883848356,-500.0,0.0003041,2]
[357193788,1743883848366,-500.0,0.0003041,2]
[357193789,1743883848375,-7496.33,0.0003041,2]
[357193790,1743883848384,-1042.25,0.0003041,2]
[357193791,1743883848394,-500.0,0.0003041,2]
[357193792,1743883848404,-543.06,0.0003041,2]
[357193793,1743883848414,-500.0,0.0003041,2]
[357193794,1743883848423,-156.939614,0.0003041,7]
[357193795,1743883848434,-500.0,0.0003041,2]
[357193796,1743883848443,-647.48,0.0003041,2]
[357193797,1743883848453,-500.0,0.0003041,2]
[357193798,1743883848462,-151.0,0.0003041,7]
[357193799,1743883848472,-151.0,0.0003041,7]
[357193800,1743883848481,-718.6,0.0003041,2]
[357193801,1743883848490,-1355.36,0.0003041,2]
[357193802,1743883848501,-693.04,0.0003041,2]
[357193803,1743883848510,-749.12,0.0003041,2]
[357193804,1743883848520,-151.0,0.0003041,7]
[357193805,1743883848530,-679.22,0.0003041,2]
[357193806,1743883848539,-1292.535242,0.0003041,7]
[357193807,1743883848548,-719.01,0.0003041,2]
[357193808,1743883848558,-500.0,0.0003041,2]
[357193809,1743883848567,-500.0,0.0003041,2]
[357193810,1743883848577,-1292.535242,0.0003041,7]
[357193811,1743883848586,-5078.45,0.0003041,2]
[357193812,1743883848594,-500.0,0.0003041,2]
[357193813,1743883848604,-500.0,0.0003041,2]
[357193814,1743883848614,-164.694971,0.0003041,7]
[357193815,1743883848624,-2538.8,0.0003041,2]
[357193816,1743883848634,-341.63045214,0.0003041,2]
[357193817,1743883848644,-500.0,0.0003041,2]
[357193818,1743883848654,-500.0,0.0003041,2]
[357193819,1743883848664,-500.0,0.0003041,2]
[357193820,1743883848674,-1163.81,0.0003041,2]
[357193821,1743883848683,-500.0,0.0003041,2]
[357193822,1743883848694,-3919.01,0.0003041,2]
[357193823,1743883848704,-500.0,0.0003041,2]
[357193824,1743883848713,-9459.4,0.0003041,2]
[357193825,1743883848722,-1226.06,0.0003041,2]
[357193826,1743883848732,-500.0,0.0003041,2]
[357193827,1743883848742,-500.0,0.0003041,2]
[357193828,1743883848752,-500.0,0.0003041,2]
[357193829,1743883848762,-500.0,0.0003041,2]
[357193830,1743883848772,-500.0,0.0003041,2]
[357193831,1743883848781,-564.2,0.0003041,2]
[357193832,1743883848791,-500.0,0.0003041,2]
[357193833,1743883848801,-500.0,0.0003041,2]
[357193834,1743883848811,-151.0,0.0003041,7]
[357193835,1743883848820,-500.0,0.0003041,2]
[357193836,1743883848829,-1161.02,0.0003041,2]
[357193837,1743883848840,-151.0,0.0003041,7]
[357193838,1743883848849,-500.0,0.0003041,2]
[357193839,1743883848859,-2386.027986,0.0003041,7]
[357193840,1743883848868,-2386.027986,0.0003041,7]
[357193841,1743883848877,-500.0,0.0003041,2]
[357193842,1743883848887,-428.77791915,0.0003041,2]
[357193843,1743883848897,-163.38,0.00030453,2]
[357193844,1743883848906,-159.0,0.000306,23]
[357193845,1743883848916,-1936.0,0.000306,2]
[357193846,1743883848925,-2218.0,0.00030635,2]
[357193847,1743883848935,-160.85295584,0.00030638,2]
[357193848,1743883848947,-2114.0,0.00030658,2]
[357193849,1743883848957,-1664.0,0.00030684,5]
[357193850,1743883848966,-153.334631,0.00030684,7]
[357193851,1743883848975,-151.0,0.00030684,7]
[357193852,1743883848985,-152.437516,0.00030684,7]
[357193853,1743883848994,-152.447004,0.00030684,7]
[357193854,1743883849003,-500.0,0.00030684,2]
[357193855,1743883849013,-500.0,0.00030684,2]
[357193856,1743883849022,-500.0,0.00030684,2]
[357193857,1743883849031,-500.0,0.00030684,2]
[357193858,1743883849040,-500.0,0.00030684,2]
[357193859,1743883849050,-500.0,0.00030684,2]
[357193860,1743883849060,-213.84705,0.00030684,7]
[357193861,1743883849069,-151.0,0.00030684,7]
[357193862,1743883849078,-213.84705,0.00030684,7]
[357193863,1743883849087,-500.0,0.00030684,2]
[357193864,1743883849096,-500.0,0.00030684,2]
[357193865,1743883849105,-500.0,0.00030684,2]
[357193866,1743883849114,-151.0,0.00030684,7]
[357193867,1743883849123,-500.0,0.00030684,2]
[357193868,1743883849133,-500.0,0.00030684,2]
[357193869,1743883849142,-1180.8,0.00030684,2]
[357193870,1743883849152,-151.0,0.00030684,7]
[357193871,1743883849161,-151.0,0.00030684,7]
[357193872,1743883849170,-151.0,0.00030684,7]
[357193873,1743883849179,-500.0,0.00030684,2]
[357193874,1743883849188,-500.0,0.00030684,2]
[357193875,1743883849198,-500.0,0.00030684,2]
[357193876,1743883849207,-151.0,0.00030684,7]
[357193877,1743883849217,-500.0,0.00030684,2]
[357193878,1743883849226,-500.0,0.00030684,2]
[357193879,1743883849236,-500.0,0.00030684,2]
[357193880,1743883849245,-500.0,0.00030684,2]
[357193881,1743883849255,-500.0,0.00030684,2]
[357193882,1743883849264,-500.0,0.00030684,2]
[357193883,1743883849274,-500.0,0.00030684,2]
[357193884,1743883849283,-500.0,0.00030684,2]
[357193885,1743883849293,-500.0,0.00030684,2]
[357193886,1743883849302,-500.0,0.00030684,2]
[357193887,1743883849312,-500.0,0.00030684,2]
[357193888,1743883849322,-500.0,0.00030684,2]
[357193889,1743883849332,-500.0,0.00030684,2]
[357193890,1743883849342,-602.61359825,0.00030684,2]
[357193891,1743883849351,-574.14,0.00030684,2]
[357193892,1743883849360,-500.0,0.00030684,2]
[357193893,1743883849370,-500.0,0.00030684,2]
[357193894,1743883849379,-500.0,0.00030684,2]
[357193895,1743883849389,-7496.33,0.00030684,2]
[357193896,1743883849400,-1042.25,0.00030684,2]
[357193897,1743883849410,-500.0,0.00030684,2]
[357193898,1743883849419,-543.06,0.00030684,2]
[357193899,1743883849428,-500.0,0.00030684,2]
[357193900,1743883849438,-500.0,0.00030684,2]
[357193901,1743883849447,-647.48,0.00030684,2]
[357193902,1743883849456,-500.0,0.00030684,2]
[357193903,1743883849467,-718.6,0.00030684,2]
[357193904,1743883849476,-1355.36,0.00030684,2]
[357193905,1743883849486,-693.04,0.00030684,2]
[357193906,1743883849495,-749.12,0.00030684,2]
[357193907,1743883849506,-679.22,0.00030684,2]
[357193908,1743883849519,-719.01,0.00030684,2]
[357193909,1743883849528,-500.0,0.00030684,2]
[357193910,1743883849537,-500.0,0.00030684,2]
[357193911,1743883849548,-5078.45,0.00030684,2]
[357193912,1743883849557,-500.0,0.00030684,2]
[357193913,1743883849566,-500.0,0.00030684,2]
[357193914,1743883849575,-2538.8,0.00030684,2]
[357193915,1743883849584,-500.0,0.00030684,2]
[357193916,1743883849594,-500.0,0.00030684,2]
[357193917,1743883849603,-312.91633608,0.00030684,2]
[357193918,1743883849612,-1163.81,0.00030684,2]
[357193919,1743883849621,-500.0,0.00030684,2]
[357193920,1743883849630,-3919.01,0.00030684,2]
[357193921,1743883849640,-500.0,0.00030684,2]
[357193922,1743883849649,-9459.4,0.00030684,2]
[357193923,1743883849659,-1226.06,0.00030684,2]
[357193924,1743883849668,-500.0,0.00030684,2]
[357193925,1743883849678,-500.0,0.00030684,2]
[357193926,1743883849687,-500.0,0.00030684,2]
[357193927,1743883849698,-500.0,0.00030684,2]
[357193928,1743883849708,-500.0,0.00030684,2]
[357193929,1743883849717,-564.2,0.00030684,2]
[357193930,1743883849727,-500.0,0.00030684,2]
[357193931,1743883849738,-500.0,0.00030684,2]
[357193932,1743883849747,-151.0,0.00030684,7]
[357193933,1743883849756,-500.0,0.00030684,2]
[357193934,1743883849765,-1161.02,0.00030684,2]
[357193935,1743883849775,-500.0,0.00030684,2]
[357193936,1743883849784,-500.0,0.00030684,2]
[357193937,1743883849793,-12455.0543714,0.000308,2]
[357193938,1743883849802,-1000.0,0.000308,2]
[357193939,1743883849812,-151.0,0.000308,7]
[357193940,1743883849821,-151.0,0.000308,7]
[357193941,1743883849831,-2386.027986,0.000308,7]
[357193942,1743883849841,-2386.027986,0.000308,7]
[357193943,1743883849850,-151.0,0.00030859,7]
[357193944,1743883849860,-265.833593,0.00030859,7]
[357193945,1743883849871,-153.108704,0.00030859,7]
[357193946,1743883849880,-151.0,0.00030859,7]
[357193947,1743883849890,-254.016823,0.00030859,7]
[357193948,1743883849900,-151.0,0.00030859,7]
[357193949,1743883849910,-174.149393,0.00030859,7]
[357193950,1743883849920,-151.0,0.00030859,7]
[357193951,1743883849930,-151.0,0.00030859,7]
[357193952,1743883849942,-151.0,0.00030859,7]
[357193953,1743883849953,-161.3740137,0.00030873,5]
[357193954,1743883849962,-500.0,0.00030873,5]
[357193955,1743883849971,-250.0,0.00030873,5]
[357193956,1743883849983,-605.54267935,0.00030873,5]
[357193957,1743883849993,-502.6667006,0.00030873,5]
[357193958,1743883850002,-344.89196307,0.00030873,5]
[357193959,1743883850012,-500.0,0.00030899,2]
[357193960,1743883850021,-655.85,0.00030899,2]
[357193961,1743883850031,-82459.60335445,0.000309,2]
[357193962,1743883850043,-151.0,0.000309,7]
[357193963,1743883850052,-151.0,0.000309,7]
[357193964,1743883850062,-151.0,0.000309,7]
[357193965,1743883850071,-151.0,0.000309,7]
[357193966,1743883850080,-151.0,0.000309,7]
[357193967,1743883850089,-151.0,0.000309,7]
[357193968,1743883850099,-151.0,0.000309,7]
[357193969,1743883850109,-151.0,0.000309,7]
[357193970,1743883850118,-151.0,0.000309,7]
[357193971,1743883850127,-151.0,0.000309,7]
[357193972,1743883850136,-151.0,0.000309,7]
[357193973,1743883850145,-151.0,0.000309,7]
[357193974,1743883850154,-151.0,0.000309,7]
[357193975,1743883850163,-151.0,0.000309,7]
[357193976,1743883850173,-1292.535242,0.000309,7]
[357193977,1743883850182,-1292.535242,0.000309,7]
[357193978,1743883850192,-500.0,0.0003094,5]
[357193979,1743883850201,-500.0,0.0003094,5]
[357193980,1743883850211,-254.980918,0.00030958,7]
[357193981,1743883850220,-500.0,0.00030958,2]
[357193982,1743883850229,-500.0,0.00030958,2]
[357193983,1743883850239,-500.0,0.00030958,2]
[357193984,1743883850248,-500.0,0.00030958,2]
[357193985,1743883850258,-500.0,0.00030958,2]
[357193986,1743883850267,-500.0,0.00030958,2]
[357193987,1743883850276,-213.84705,0.00030958,7]
[357193988,1743883850285,-151.0,0.00030958,7]
[357193989,1743883850294,-213.84705,0.00030958,7]
[357193990,1743883850304,-500.0,0.00030958,2]
[357193991,1743883850313,-500.0,0.00030958,2]
[357193992,1743883850322,-489.35989088,0.00030958,2]
[357193993,1743883850332,-151.0,0.00030958,7]
[357193994,1743883850341,-500.0,0.00030958,2]
[357193995,1743883850350,-500.0,0.00030958,2]
[357193996,1743883850360,-1180.8,0.00030958,2]
[357193997,1743883850369,-151.0,0.00030958,7]
[357193998,1743883850379,-151.0,0.00030958,7]
[357193999,1743883850387,-500.0,0.00030958,2]
[357194000,1743883850397,-500.0,0.00030958,2]
[357194001,1743883850406,-500.0,0.00030958,2]
[357194002,1743883850415,-500.0,0.00030958,2]
[357194003,1743883850425,-500.0,0.00030958,2]
[357194004,1743883850435,-500.0,0.00030958,2]
[357194005,1743883850445,-500.0,0.00030958,2]
[357194006,1743883850454,-500.0,0.00030958,2]
[357194007,1743883850463,-151.0,0.00030958,7]
[357194008,1743883850473,-151.0,0.00030958,7]
[357194009,1743883850483,-500.0,0.00030958,2]
[357194010,1743883850492,-151.0,0.00030958,7]
[357194011,1743883850502,-500.0,0.00030958,2]
[357194012,1743883850511,-500.0,0.00030958,2]
[357194013,1743883850522,-500.0,0.00030958,2]
[357194014,1743883850531,-500.0,0.00030958,2]
[357194015,1743883850541,-500.0,0.00030958,2]
[357194016,1743883850551,-500.0,0.00030958,2]
[357194017,1743883850561,-500.0,0.00030958,2]
[357194018,1743883850570,-574.14,0.00030958,2]
[357194019,1743883850579,-500.0,0.00030958,2]
[357194020,1743883850589,-500.0,0.00030958,2]
[357194021,1743883850599,-500.0,0.00030958,2]
[357194022,1743883850608,-7496.33,0.00030958,2]
[357194023,1743883850617,-1042.25,0.00030958,2]
[357194024,1743883850626,-500.0,0.00030958,2]
[357194025,1743883850635,-543.06,0.00030958,2]
[357194026,1743883850644,-500.0,0.00030958,2]
[357194027,1743883850653,-500.0,0.00030958,2]
[357194028,1743883850662,-647.48,0.00030958,2]
[357194029,1743883850672,-500.0,0.00030958,2]
[357194030,1743883850681,-151.0,0.00030958,7]
[357194031,1743883850690,-151.0,0.00030958,7]
[357194032,1743883850700,-718.6,0.00030958,2]
[357194033,1743883850709,-1355.36,0.00030958,2]
[357194034,1743883850718,-693.04,0.00030958,2]
[357194035,1743883850727,-749.12,0.00030958,2]
[357194036,1743883850737,-679.22,0.00030958,2]
[357194037,1743883850746,-719.01,0.00030958,2]
[357194038,1743883850755,-500.0,0.00030958,2]
[357194039,1743883850764,-500.0,0.00030958,2]
[357194040,1743883850773,-5078.45,0.00030958,2]
[357194041,1743883850783,-427.39197114,0.00030958,2]
[357194042,1743883850792,-500.0,0.00030958,2]
[357194043,1743883850802,-2538.8,0.00030958,2]
[357194044,1743883850811,-500.0,0.00030958,2]
[357194045,1743883850821,-500.0,0.00030958,2]
[357194046,1743883850830,-1163.81,0.00030958,2]
[357194047,1743883850840,-500.0,0.00030958,2]
[357194048,1743883850849,-3919.01,0.00030958,2]
[357194049,1743883850858,-500.0,0.00030958,2]
[357194050,1743883850868,-9459.4,0.00030958,2]
[357194051,1743883850877,-1226.06,0.00030958,2]
[357194052,1743883850886,-500.0,0.00030958,2]
[357194053,1743883850896,-500.0,0.00030958,2]
[357194054,1743883850905,-500.0,0.00030958,2]
[357194055,1743883850916,-500.0,0.00030958,2]
[357194056,1743883850925,-500.0,0.00030958,2]
[357194057,1743883850938,-564.2,0.00030958,2]
[357194058,1743883850948,-500.0,0.00030958,2]
[357194059,1743883850958,-500.0,0.00030958,2]
[357194060,1743883850967,-151.0,0.00030958,7]
[357194061,1743883850977,-151.0,0.00030958,7]
[357194062,1743883850986,-500.0,0.00030958,2]
[357194063,1743883850995,-1161.02,0.00030958,2]
[357194064,1743883851005,-151.0,0.00030958,7]
[357194065,1743883851014,-538.57829606,0.00030958,2]
[357194066,1743883851023,-2386.027986,0.00030958,7]
[357194067,1743883851032,-2386.027986,0.00030958,7]
[357194068,1743883851042,-500.0,0.00030958,2]
[357194069,1743883851051,-500.0,0.0003097,5]
[357194070,1743883851061,-500.0,0.0003097,5]
[357194071,1743883851069,-550.0,0.00031,2]
[357194072,1743883851079,-150.0,0.00031115,2]
[357194073,1743883851088,-150.0,0.00031115,2]
[357194074,1743883851098,-241.931,0.00031115,2]
[357194075,1743883851107,-181.526,0.00031115,2]
[357194076,1743883851116,-256.974,0.00031115,2]
[357194077,1743883851126,-1285.0,0.00031115,2]
[357194078,1743883851136,-574.192,0.00031115,2]
[357194079,1743883851145,-2042.0,0.00031115,2]
[357194080,1743883851155,-1429.167,0.00031115,2]
[357194081,1743883851164,-909.0,0.00031115,2]
[357194082,1743883851174,-792.0,0.00031115,2]
[357194083,1743883851184,-1435.0,0.00031115,2]
[357194084,1743883851193,-1286.221,0.00031115,2]
[357194085,1743883851204,-4097.0,0.00031115,2]
[357194086,1743883851213,-543.0,0.00031115,2]
[357194087,1743883851222,-2833.0017338,0.00031211,2]
[357194088,1743883851232,-2905.9139758,0.00031211,2]
[357194089,1743883851383,-500.0,0.00031232,2]
[357194090,1743883851393,-151.0,0.00031232,7]
[357194091,1743883851403,-155.63812,0.00031232,7]
[357194092,1743883851413,-154.224022,0.00031232,7]
[357194093,1743883851422,-152.779661,0.00031232,7]
[357194094,1743883851431,-151.0,0.00031232,7]
[357194095,1743883851440,-151.0,0.00031232,7]
[357194096,1743883851450,-500.0,0.00031232,2]
[357194097,1743883851459,-500.0,0.00031232,2]
[357194098,1743883851468,-500.0,0.00031232,2]
[357194099,1743883851477,-500.0,0.00031232,2]
[357194100,1743883851487,-500.0,0.00031232,2]
[357194101,1743883851496,-500.0,0.00031232,2]
[357194102,1743883851505,-500.0,0.00031232,2]
[357194103,1743883851515,-500.0,0.00031232,2]
[357194104,1743883851524,-500.0,0.00031232,2]
[357194105,1743883851533,-1180.8,0.00031232,2]
[357194106,1743883851544,-500.0,0.00031232,2]
[357194107,1743883851554,-500.0,0.00031232,2]
[357194108,1743883851563,-500.0,0.00031232,2]
[357194109,1743883851573,-500.0,0.00031232,2]
[357194110,1743883851583,-500.0,0.00031232,2]
[357194111,1743883851592,-151.0,0.00031232,7]
[357194112,1743883851602,-151.0,0.00031232,7]
[357194113,1743883851611,-289.43775875,0.00031232,2]
[357194114,1743883851620,-151.0,0.00031232,7]
[357194115,1743883851630,-500.0,0.00031232,2]
[357194116,1743883851639,-500.0,0.00031232,2]
[357194117,1743883851649,-151.0,0.00031232,7]
[357194118,1743883851658,-500.0,0.00031232,2]
[357194119,1743883851668,-500.0,0.00031232,2]
[357194120,1743883851677,-500.0,0.00031232,2]
[357194121,1743883851687,-500.0,0.00031232,2]
[357194122,1743883851697,-500.0,0.00031232,2]
[357194123,1743883851706,-500.0,0.00031232,2]
[357194124,1743883851716,-500.0,0.00031232,2]
[357194125,1743883851726,-500.0,0.00031232,2]
[357194126,1743883851736,-574.14,0.00031232,2]
[357194127,1743883851745,-500.0,0.00031232,2]
[357194128,1743883851755,-500.0,0.00031232,2]
[357194129,1743883851765,-500.0,0.00031232,2]
[357194130,1743883851775,-7496.33,0.00031232,2]
[357194131,1743883851784,-1042.25,0.00031232,2]
[357194132,1743883851794,-500.0,0.00031232,2]
[357194133,1743883851804,-543.06,0.00031232,2]
[357194134,1743883851813,-500.0,0.00031232,2]
[357194135,1743883851823,-500.0,0.00031232,2]
[357194136,1743883851832,-647.48,0.00031232,2]
[357194137,1743883851842,-500.0,0.00031232,2]
[357194138,1743883851851,-718.6,0.00031232,2]
[357194139,1743883851860,-1355.36,0.00031232,2]
[357194140,1743883851871,-693.04,0.00031232,2]
[357194141,1743883851882,-749.12,0.00031232,2]
[357194142,1743883851891,-172.061021,0.00031232,7]
[357194143,1743883851901,-679.22,0.00031232,2]
[357194144,1743883851911,-1292.535242,0.00031232,7]
[357194145,1743883851921,-719.01,0.00031232,2]
[357194146,1743883851931,-500.0,0.00031232,2]
[357194147,1743883851946,-500.0,0.00031232,2]
[357194148,1743883851955,-1292.535242,0.00031232,7]
[357194149,1743883851965,-5078.45,0.00031232,2]
[357194150,1743883851975,-500.0,0.00031232,2]
[357194151,1743883851985,-2538.8,0.00031232,2]
[357194152,1743883851994,-500.0,0.00031232,2]
[357194153,1743883852003,-500.0,0.00031232,2]
[357194154,1743883852013,-1163.81,0.00031232,2]
[357194155,1743883852024,-500.0,0.00031232,2]
[357194156,1743883852033,-3919.01,0.00031232,2]
[357194157,1743883852043,-500.0,0.00031232,2]
[357194158,1743883852052,-9459.4,0.00031232,2]
[357194159,1743883852061,-1226.06,0.00031232,2]
[357194160,1743883852071,-500.0,0.00031232,2]
[357194161,1743883852080,-500.0,0.00031232,2]
[357194162,1743883852089,-500.0,0.00031232,2]
[357194163,1743883852100,-593.84435159,0.00031232,2]
[357194164,1743883852109,-500.0,0.00031232,2]
[357194165,1743883852119,-564.2,0.00031232,2]
[357194166,1743883852129,-500.0,0.00031232,2]
[357194167,1743883852139,-500.0,0.00031232,2]
[357194168,1743883852148,-500.0,0.00031232,2]
[357194169,1743883852157,-1161.02,0.00031232,2]
[357194170,1743883852171,-500.0,0.00031232,2]
[357194171,1743883852181,-299.56,0.00031288,2]
[357194172,1743883852190,-273.95319182,0.00031316,2]
[357194173,1743883852201,-151.0,0.00031426,7]
[357194174,1743883852211,-3259.96,0.00031426,2]
[357194175,1743883852221,-2092.26,0.00031426,10]
[357194176,1743883852230,-631.16,0.00031426,2]
[357194177,1743883852241,-8450.88,0.00031426,2]
[357194178,1743883852251,-314.94,0.00031426,2]
[357194179,1743883852261,-150.99,0.00031426,2]
[357194180,1743883852271,-2801.17,0.00031426,90]
[357194181,1743883852282,-9508.79,0.00031426,2]
[357194182,1743883852291,-818.87,0.00031426,2]
[357194183,1743883852301,-170.19037752,0.00031474,7]
[357194184,1743883852314,-201.27825906,0.00031474,7]
[357194185,1743883852323,-6236.0616684,0.00031484,2]
[357194186,1743883852333,-585.7960856,0.00031484,2]
[357194187,1743883852342,-213.84705,0.00031484,7]
[357194188,1743883852351,-178.250568,0.00031484,7]
[357194189,1743883852360,-213.84705,0.00031484,7]
[357194190,1743883852371,-151.0,0.00031484,7]
[357194191,1743883852381,-151.0,0.00031484,7]
[357194192,1743883852390,-151.0,0.00031484,7]
[357194193,1743883852399,-655.85,0.00031505,2]
[357194194,1743883852410,-150.0,0.00031505,2]
[357194195,1743883852419,-150.0,0.00031505,2]
[357194196,1743883852428,-3623.04662211,0.00031505,2]
[357194197,1743883852438,-150.0,0.00031505,2]
[357194198,1743883852448,-2924.19240502,0.00031505,2]
[357194199,1743883852457,-4765.23634932,0.00031505,2]
[357194200,1743883852466,-568.26239807,0.00031506,2]
[357194201,1743883852475,-500.0,0.00031506,2]
[357194202,1743883852484,-500.0,0.00031506,2]
[357194203,1743883852493,-500.0,0.00031506,2]
[357194204,1743883852502,-500.0,0.00031506,2]
[357194205,1743883852511,-500.0,0.00031506,2]
[357194206,1743883852520,-500.0,0.00031506,2]
[357194207,1743883852529,-500.0,0.00031506,2]
[357194208,1743883852538,-500.0,0.00031506,2]
[357194209,1743883852547,-500.0,0.00031506,2]
[357194210,1743883852559,-1180.8,0.00031506,2]
[357194211,1743883852568,-500.0,0.00031506,2]
[357194212,1743883852578,-500.0,0.00031506,2]
[357194213,1743883852587,-500.0,0.00031506,2]
[357194214,1743883852597,-166.96576637,0.00031506,2]
[357194215,1743883852606,-500.0,0.00031506,2]
[357194216,1743883852615,-500.0,0.00031506,2]
[357194217,1743883852625,-500.0,0.00031506,2]
[357194218,1743883852634,-151.0,0.00031506,7]
[357194219,1743883852644,-151.0,0.00031506,7]
[357194220,1743883852653,-500.0,0.00031506,2]
[357194221,1743883852663,-151.0,0.00031506,7]
[357194222,1743883852673,-500.0,0.00031506,2]
[357194223,1743883852682,-500.0,0.00031506,2]
[357194224,1743883852692,-500.0,0.00031506,2]
[357194225,1743883852702,-500.0,0.00031506,2]
[357194226,1743883852712,-500.0,0.00031506,2]
[357194227,1743883852722,-500.0,0.00031506,2]
[357194228,1743883852731,-500.0,0.00031506,2]
[357194229,1743883852741,-574.14,0.00031506,2]
[357194230,1743883852750,-500.0,0.00031506,2]
[357194231,1743883852760,-500.0,0.00031506,2]
[357194232,1743883852769,-500.0,0.00031506,2]
[357194233,1743883852778,-7496.33,0.00031506,2]
[357194234,1743883852788,-1042.25,0.00031506,2]
[357194235,1743883852797,-500.0,0.00031506,2]
[357194236,1743883852807,-543.06,0.00031506,2]
[357194237,1743883852817,-500.0,0.00031506,2]
[357194238,1743883852826,-500.0,0.00031506,2]
[357194239,1743883852836,-647.48,0.00031506,2]
[357194240,1743883852845,-500.0,0.00031506,2]
[357194241,1743883852855,-151.0,0.00031506,7]
[357194242,1743883852864,-151.0,0.00031506,7]
[357194243,1743883852873,-1355.36,0.00031506,2]
[357194244,1743883852883,-718.6,0.00031506,2]
[357194245,1743883852892,-693.04,0.00031506,2]
[357194246,1743883852902,-749.12,0.00031506,2]
[357194247,1743883852912,-679.22,0.00031506,2]
[357194248,1743883852922,-719.01,0.00031506,2]
[357194249,1743883852931,-500.0,0.00031506,2]
[357194250,1743883852941,-500.0,0.00031506,2]
[357194251,1743883852951,-5078.45,0.00031506,2]
[357194252,1743883852963,-500.0,0.00031506,2]